[Event "Late-Titled-Tuesday-Blitz-June-25-2024"]
[Site "Chess.com"]
[Date "2024.06.25"]
[Round "6"]
[White "Chempiblinka"]
[Black "anthonydrayton"]
[Result "1-0"]
[WhiteElo "2398"]
[BlackElo "2111"]
[TimeControl "180+1"]
[EndTime "15:03:38 PDT"]
[Termination "Chempiblinka won by resignation"]

1. Nf3 {[%clk 0:02:59.7]} 1... Nf6 {[%clk 0:02:58.1]} 2. g3 {[%clk 0:03:00.3]}
2... g6 {[%clk 0:02:58.8]} 3. Bg2 {[%clk 0:03:00.8]} 3... Bg7 {[%clk 0:02:59]}
4. O-O {[%clk 0:02:57.9]} 4... O-O {[%clk 0:02:59.9]} 5. c4 {[%clk 0:02:58]}
5... Nc6 {[%clk 0:03:00.8]} 6. Nc3 {[%clk 0:02:57.7]} 6... e5 {[%clk 0:02:58.7]}
7. d3 {[%clk 0:02:57.9]} 7... b6 {[%clk 0:02:58.9]} 8. Nxe5 {[%clk 0:02:55]}
8... Nxe5 {[%clk 0:02:57.2]} 9. Bxa8 {[%clk 0:02:54]} 9... c6 {[%clk 0:02:57.9]}
10. Bf4 {[%clk 0:02:40]} 10... Ne8 {[%clk 0:02:53]} 11. Qa4 {[%clk 0:02:17.6]}
11... a6 {[%clk 0:02:38.9]} 12. d4 {[%clk 0:02:11.7]} 12... b5 {[%clk
0:02:20.3]} 13. cxb5 {[%clk 0:02:11.3]} 13... axb5 {[%clk 0:02:21.2]} 14. Nxb5
{[%clk 0:01:37.3]} 14... cxb5 {[%clk 0:02:22.1]} 15. Qxb5 {[%clk 0:01:36]} 15...
Nc7 {[%clk 0:02:18.2]} 16. Qb8 {[%clk 0:01:17.3]} 16... Nxa8 {[%clk 0:02:12.7]}
17. Bxe5 {[%clk 0:01:16.8]} 17... Bxe5 {[%clk 0:02:05.4]} 18. dxe5 {[%clk
0:01:17.7]} 18... Nb6 {[%clk 0:02:04.4]} 19. a4 {[%clk 0:01:14.5]} 19... Nc4
{[%clk 0:01:58.5]} 20. Rfc1 {[%clk 0:01:13]} 20... Na5 {[%clk 0:01:50.2]} 21.
Rc5 {[%clk 0:01:07.2]} 21... Nb3 {[%clk 0:01:49.5]} 22. Qxb3 {[%clk 0:01:06]}
22... Qe7 {[%clk 0:01:46]} 23. Qc3 {[%clk 0:01:05.4]} 23... Bb7 {[%clk
0:01:45.5]} 24. b4 {[%clk 0:01:04.7]} 24... Qe6 {[%clk 0:01:35]} 25. b5 {[%clk
0:00:59.6]} 25... d6 {[%clk 0:01:28]} 26. Rc7 {[%clk 0:00:56.2]} 26... Ba8
{[%clk 0:01:25.3]} 27. b6 {[%clk 0:00:55.2]} 27... Qd5 {[%clk 0:01:22.7]} 28. f3
{[%clk 0:00:49.2]} 28... dxe5 {[%clk 0:01:20]} 29. a5 {[%clk 0:00:48.8]} 29...
e4 {[%clk 0:01:17.4]} 30. a6 {[%clk 0:00:47.5]} 30... exf3 {[%clk 0:01:17.7]}
31. exf3 {[%clk 0:00:39.7]} 31... Qxf3 {[%clk 0:01:03.3]} 32. Qxf3 {[%clk
0:00:38.8]} 32... Bxf3 {[%clk 0:01:04.2]} 33. b7 {[%clk 0:00:38.5]} 1-0

[Event "Late-Titled-Tuesday-Blitz-June-25-2024"]
[Site "Chess.com"]
[Date "2024.06.25"]
[Round "6"]
[White "ValeriyGrinev"]
[Black "BardArtem"]
[Result "1/2-1/2"]
[WhiteElo "2596"]
[BlackElo "2817"]
[TimeControl "180+1"]
[EndTime "15:03:43 PDT"]
[Termination "Game drawn by agreement"]

1. d4 {[%clk 0:03:00.9]} 1... d5 {[%clk 0:02:58.4]} 2. c4 {[%clk 0:03:00.9]}
2... e6 {[%clk 0:02:57.8]} 3. Nf3 {[%clk 0:03:01.1]} 3... Nf6 {[%clk 0:02:57.2]}
4. e3 {[%clk 0:03:01.4]} 4... c5 {[%clk 0:02:42.2]} 5. dxc5 {[%clk 0:03:01]}
5... Bxc5 {[%clk 0:02:42]} 6. a3 {[%clk 0:02:59.5]} 6... a5 {[%clk 0:02:33.1]}
7. Nc3 {[%clk 0:02:58.2]} 7... O-O {[%clk 0:02:31.4]} 8. cxd5 {[%clk 0:02:57.2]}
8... exd5 {[%clk 0:02:32.3]} 9. Be2 {[%clk 0:02:56.4]} 9... Nc6 {[%clk
0:02:32.6]} 10. O-O {[%clk 0:02:55.1]} 10... Re8 {[%clk 0:02:32.7]} 11. Nb5
{[%clk 0:02:53.9]} 11... Bb6 {[%clk 0:02:30.7]} 12. b3 {[%clk 0:02:53]} 12...
Ne4 {[%clk 0:02:27.4]} 13. Bb2 {[%clk 0:02:51.3]} 13... h6 {[%clk 0:02:17.3]}
14. Rc1 {[%clk 0:02:46.9]} 14... Bg4 {[%clk 0:01:58.7]} 15. Nfd4 {[%clk
0:02:43.3]} 15... Bd7 {[%clk 0:01:56.6]} 16. a4 {[%clk 0:02:40.4]} 16... Rc8
{[%clk 0:01:25.9]} 17. Bg4 {[%clk 0:02:37.3]} 17... Nxd4 {[%clk 0:01:22.6]} 18.
Rxc8 {[%clk 0:02:27]} 18... Bxc8 {[%clk 0:01:21]} 19. Nxd4 {[%clk 0:02:26.5]}
19... Qg5 {[%clk 0:01:01.3]} 20. Bxc8 {[%clk 0:02:21.2]} 20... Rxc8 {[%clk
0:01:02.2]} 21. Qe2 {[%clk 0:02:16.8]} 21... Qg6 {[%clk 0:00:52.8]} 22. Rd1
{[%clk 0:02:14]} 22... Nc3 {[%clk 0:00:40]} 23. Bxc3 {[%clk 0:02:08.6]} 23...
Rxc3 {[%clk 0:00:40.9]} 24. g3 {[%clk 0:01:54.2]} 24... Qe4 {[%clk 0:00:35]} 25.
Qd2 {[%clk 0:01:36.4]} 25... Bxd4 {[%clk 0:00:11.5]} 26. Qxd4 {[%clk 0:01:37.3]}
26... Qxd4 {[%clk 0:00:08.5]} 27. Rxd4 {[%clk 0:01:38.2]} 27... Rxb3 {[%clk
0:00:09.4]} 28. Rxd5 {[%clk 0:01:38.3]} 28... b6 {[%clk 0:00:10.2]} 29. Rd8+
{[%clk 0:01:37.2]} 29... Kh7 {[%clk 0:00:10.2]} 30. Rb8 {[%clk 0:01:37.3]} 30...
Kg6 {[%clk 0:00:09.8]} 31. Kg2 {[%clk 0:01:34.2]} 31... Kf6 {[%clk 0:00:10.1]}
32. Kf3 {[%clk 0:01:33.2]} 32... Rb4 {[%clk 0:00:09.1]} 33. Rb7 {[%clk
0:01:32.6]} 33... Ke6 {[%clk 0:00:09.4]} 34. g4 {[%clk 0:01:31.1]} 34... Kf6
{[%clk 0:00:05.6]} 1/2-1/2

[Event "Late-Titled-Tuesday-Blitz-June-25-2024"]
[Site "Chess.com"]
[Date "2024.06.25"]
[Round "6"]
[White "wonderfultime"]
[Black "Aswathchess"]
[Result "1-0"]
[WhiteElo "3047"]
[BlackElo "2776"]
[TimeControl "180+1"]
[EndTime "15:03:45 PDT"]
[Termination "wonderfultime won by resignation"]

1. d4 {[%clk 0:02:52.9]} 1... Nf6 {[%clk 0:02:58]} 2. Nf3 {[%clk 0:02:53.3]}
2... a6 {[%clk 0:02:57.3]} 3. Bf4 {[%clk 0:02:48.9]} 3... e6 {[%clk 0:02:55.9]}
4. e3 {[%clk 0:02:48.6]} 4... d5 {[%clk 0:02:56.3]} 5. Bd3 {[%clk 0:02:48.3]}
5... Bd6 {[%clk 0:02:56.6]} 6. Nbd2 {[%clk 0:02:48.6]} 6... O-O {[%clk
0:02:56.6]} 7. O-O {[%clk 0:02:48.1]} 7... c5 {[%clk 0:02:57.3]} 8. c3 {[%clk
0:02:48.5]} 8... Qc7 {[%clk 0:02:57]} 9. Bxd6 {[%clk 0:02:48.4]} 9... Qxd6
{[%clk 0:02:57]} 10. Ne5 {[%clk 0:02:48.9]} 10... b5 {[%clk 0:02:53.2]} 11. f4
{[%clk 0:02:49.4]} 11... b4 {[%clk 0:02:50.8]} 12. Rf3 {[%clk 0:02:48.7]} 12...
Bb7 {[%clk 0:02:49.6]} 13. Rh3 {[%clk 0:02:48]} 13... g6 {[%clk 0:02:47.3]} 14.
Qe1 {[%clk 0:02:46.9]} 14... Ne4 {[%clk 0:02:12]} 15. Bxe4 {[%clk 0:02:15.8]}
15... dxe4 {[%clk 0:02:10.1]} 16. dxc5 {[%clk 0:02:16.4]} 16... Qxc5 {[%clk
0:02:00.9]} 17. Nb3 {[%clk 0:02:13.5]} 17... Qe7 {[%clk 0:01:58.7]} 18. cxb4
{[%clk 0:02:13]} 18... Nc6 {[%clk 0:01:54.8]} 19. Nc5 {[%clk 0:02:03.5]} 19...
Nxe5 {[%clk 0:01:49.3]} 20. fxe5 {[%clk 0:02:04.4]} 20... Bd5 {[%clk 0:01:49.3]}
21. Qh4 {[%clk 0:01:56.7]} 21... Qxh4 {[%clk 0:01:45.6]} 22. Rxh4 {[%clk
0:01:57.6]} 22... Rfb8 {[%clk 0:01:43.2]} 23. a3 {[%clk 0:01:57.7]} 23... a5
{[%clk 0:01:42.8]} 24. Nd7 {[%clk 0:01:58.1]} 24... axb4 {[%clk 0:01:26.7]} 25.
Nxb8 {[%clk 0:01:57]} 25... Rxb8 {[%clk 0:01:27.6]} 26. a4 {[%clk 0:01:57.4]}
26... Rc8 {[%clk 0:01:11.2]} 27. Rf4 {[%clk 0:01:57.7]} 27... Ra8 {[%clk
0:00:56.5]} 28. a5 {[%clk 0:01:57]} 28... Ra6 {[%clk 0:00:46.6]} 29. g4 {[%clk
0:01:48]} 29... Kf8 {[%clk 0:00:45.9]} 30. g5 {[%clk 0:01:42.5]} 30... Ke8
{[%clk 0:00:45.4]} 31. Rff1 {[%clk 0:01:38.9]} 31... Ke7 {[%clk 0:00:32.8]} 32.
Rfc1 {[%clk 0:01:39.3]} 32... Kd7 {[%clk 0:00:32.5]} 33. Rc5 {[%clk 0:01:39.4]}
33... Kd8 {[%clk 0:00:27.6]} 34. Kf2 {[%clk 0:01:39.5]} 34... Kd7 {[%clk
0:00:27.5]} 35. Ke2 {[%clk 0:01:40.2]} 35... Kd8 {[%clk 0:00:27.9]} 36. Kd2
{[%clk 0:01:40.9]} 36... Kd7 {[%clk 0:00:28.2]} 37. Ra4 {[%clk 0:01:41.7]} 37...
b3 {[%clk 0:00:26.6]} 38. Kc3 {[%clk 0:01:42.1]} 38... Kd8 {[%clk 0:00:22.2]}
39. Rb4 {[%clk 0:01:42.6]} 39... Kd7 {[%clk 0:00:21]} 40. Rb6 {[%clk 0:01:42.8]}
40... Ra7 {[%clk 0:00:20.8]} 41. a6 {[%clk 0:01:41.6]} 41... Kd8 {[%clk
0:00:21.2]} 42. Kb4 {[%clk 0:01:41.1]} 42... Kd7 {[%clk 0:00:20.5]} 43. Ka5
{[%clk 0:01:41.8]} 43... Kd8 {[%clk 0:00:20.5]} 44. Rd6+ {[%clk 0:01:42.4]}
44... Ke7 {[%clk 0:00:20.5]} 45. Kb6 {[%clk 0:01:43.3]} 45... Ra8 {[%clk
0:00:19.5]} 46. a7 {[%clk 0:01:43.6]} 46... Kf8 {[%clk 0:00:17.6]} 47. Rcxd5
{[%clk 0:01:41.6]} 47... exd5 {[%clk 0:00:17.3]} 48. Kb7 {[%clk 0:01:42.3]}
48... Rxa7+ {[%clk 0:00:16.6]} 49. Kxa7 {[%clk 0:01:42.6]} 1-0

[Event "Late-Titled-Tuesday-Blitz-June-25-2024"]
[Site "Chess.com"]
[Date "2024.06.25"]
[Round "6"]
[White "nitpicker"]
[Black "bazar-wokzal"]
[Result "0-1"]
[WhiteElo "2347"]
[BlackElo "2612"]
[TimeControl "180+1"]
[EndTime "15:03:45 PDT"]
[Termination "bazar-wokzal won by resignation"]

1. d4 {[%clk 0:03:00.9]} 1... Nf6 {[%clk 0:02:57.3]} 2. c4 {[%clk 0:02:59.9]}
2... Nc6 {[%clk 0:02:57]} 3. Nf3 {[%clk 0:02:58.5]} 3... e6 {[%clk 0:02:56.9]}
4. a3 {[%clk 0:02:58.2]} 4... g6 {[%clk 0:02:56.5]} 5. Bg5 {[%clk 0:02:52.9]}
5... Bg7 {[%clk 0:02:44]} 6. Nc3 {[%clk 0:02:52.3]} 6... h6 {[%clk 0:02:41.3]}
7. Bh4 {[%clk 0:02:52]} 7... O-O {[%clk 0:02:34.4]} 8. e3 {[%clk 0:02:48.6]}
8... Ne7 {[%clk 0:02:28.1]} 9. Bd3 {[%clk 0:02:34.5]} 9... d5 {[%clk 0:02:27.5]}
10. Qc2 {[%clk 0:02:11.8]} 10... b6 {[%clk 0:02:24]} 11. O-O {[%clk 0:02:08.2]}
11... dxc4 {[%clk 0:02:21]} 12. Bxc4 {[%clk 0:02:07.6]} 12... Nf5 {[%clk
0:02:21.2]} 13. Bg3 {[%clk 0:02:02.7]} 13... Nxg3 {[%clk 0:02:20.9]} 14. hxg3
{[%clk 0:02:02.9]} 14... Bb7 {[%clk 0:02:21.2]} 15. Rfd1 {[%clk 0:01:55.8]}
15... Qe7 {[%clk 0:02:21.3]} 16. Rac1 {[%clk 0:01:52.8]} 16... Rfd8 {[%clk
0:02:20.3]} 17. b4 {[%clk 0:01:37.1]} 17... Rac8 {[%clk 0:02:16.4]} 18. Qb3
{[%clk 0:01:27.1]} 18... c5 {[%clk 0:02:08.6]} 19. dxc5 {[%clk 0:01:26.5]} 19...
bxc5 {[%clk 0:02:05.8]} 20. b5 {[%clk 0:01:27.1]} 20... Bxf3 {[%clk 0:01:58.4]}
21. gxf3 {[%clk 0:01:26.6]} 21... Nd7 {[%clk 0:01:57.1]} 22. a4 {[%clk
0:01:23.3]} 22... Ne5 {[%clk 0:01:49.8]} 23. Be2 {[%clk 0:01:23.1]} 23... c4
{[%clk 0:01:49.3]} 24. Qa2 {[%clk 0:01:19.9]} 24... Nd3 {[%clk 0:01:34.5]} 25.
Bxd3 {[%clk 0:00:58.2]} 25... cxd3 {[%clk 0:01:32.5]} 26. Qb3 {[%clk 0:00:49.1]}
26... d2 {[%clk 0:01:25.8]} 27. Rc2 {[%clk 0:00:46.4]} 27... Rd3 {[%clk
0:01:25.2]} 28. a5 {[%clk 0:00:35]} 28... Rdxc3 {[%clk 0:01:13.2]} 29. Rxc3
{[%clk 0:00:35.2]} 29... Bxc3 {[%clk 0:01:09.8]} 30. Qa4 {[%clk 0:00:22.7]}
30... Qb4 {[%clk 0:01:07.1]} 0-1

[Event "Late-Titled-Tuesday-Blitz-June-25-2024"]
[Site "Chess.com"]
[Date "2024.06.25"]
[Round "6"]
[White "andrew-blr"]
[Black "Engima32"]
[Result "1-0"]
[WhiteElo "2607"]
[BlackElo "2416"]
[TimeControl "180+1"]
[EndTime "15:03:49 PDT"]
[Termination "andrew-blr won by resignation"]

1. d4 {[%clk 0:02:53.3]} 1... d5 {[%clk 0:02:58.7]} 2. Nf3 {[%clk 0:02:52]} 2...
Nf6 {[%clk 0:02:53.6]} 3. Nbd2 {[%clk 0:02:48.2]} 3... Bf5 {[%clk 0:02:47.7]} 4.
e3 {[%clk 0:02:47.7]} 4... e6 {[%clk 0:02:44.3]} 5. Nh4 {[%clk 0:02:47]} 5...
Bg4 {[%clk 0:02:38.2]} 6. f3 {[%clk 0:02:42.7]} 6... Bh5 {[%clk 0:02:34.7]} 7.
c4 {[%clk 0:02:42.1]} 7... c6 {[%clk 0:02:34.3]} 8. Qb3 {[%clk 0:02:40.2]} 8...
b6 {[%clk 0:02:31.9]} 9. cxd5 {[%clk 0:02:37]} 9... exd5 {[%clk 0:02:31]} 10.
Nf5 {[%clk 0:02:36.3]} 10... Bg6 {[%clk 0:02:28.2]} 11. Ng3 {[%clk 0:02:30.8]}
11... Bd6 {[%clk 0:02:21.6]} 12. Bd3 {[%clk 0:02:27]} 12... Qc7 {[%clk
0:02:20.4]} 13. Kf2 {[%clk 0:02:22.6]} 13... Nbd7 {[%clk 0:02:19.1]} 14. e4
{[%clk 0:02:10.4]} 14... dxe4 {[%clk 0:02:11.9]} 15. fxe4 {[%clk 0:02:10.2]}
15... Bxg3+ {[%clk 0:02:12.4]} 16. hxg3 {[%clk 0:02:10]} 16... O-O-O {[%clk
0:02:03]} 17. Ba6+ {[%clk 0:01:47.5]} 17... Kb8 {[%clk 0:02:01.9]} 18. e5 {[%clk
0:01:47.8]} 18... Ng4+ {[%clk 0:02:01.9]} 19. Kg1 {[%clk 0:01:42.5]} 19... Ndxe5
{[%clk 0:01:57.1]} 20. dxe5 {[%clk 0:01:28]} 20... Qxe5 {[%clk 0:01:57.4]} 21.
Nf1 {[%clk 0:01:28.6]} 21... Rhe8 {[%clk 0:01:35.8]} 22. Bf4 {[%clk 0:01:27.8]}
22... f6 {[%clk 0:00:43.2]} 23. Bxe5+ {[%clk 0:01:23.9]} 23... Rxe5 {[%clk
0:00:44.1]} 24. Rh4 {[%clk 0:01:23.7]} 24... h5 {[%clk 0:00:39.8]} 25. Rd1
{[%clk 0:01:08]} 25... Rde8 {[%clk 0:00:37.7]} 26. Qc4 {[%clk 0:01:01]} 26...
Rc5 {[%clk 0:00:35]} 27. Qf4+ {[%clk 0:01:00.7]} 27... Ree5 {[%clk 0:00:32.8]}
28. Rxg4 {[%clk 0:01:00.1]} 28... hxg4 {[%clk 0:00:32.6]} 29. Qxg4 {[%clk
0:00:58.5]} 29... Bf5 {[%clk 0:00:29.8]} 30. Qxg7 {[%clk 0:00:54.9]} 1-0

[Event "Late-Titled-Tuesday-Blitz-June-25-2024"]
[Site "Chess.com"]
[Date "2024.06.25"]
[Round "6"]
[White "CFalcons8"]
[Black "KChor05"]
[Result "0-1"]
[WhiteElo "2438"]
[BlackElo "2621"]
[TimeControl "180+1"]
[EndTime "15:03:50 PDT"]
[Termination "KChor05 won by resignation"]

1. d4 {[%clk 0:03:00.9]} 1... Nf6 {[%clk 0:02:58.4]} 2. c4 {[%clk 0:03:00.1]}
2... g6 {[%clk 0:02:58.7]} 3. Nc3 {[%clk 0:02:59.2]} 3... Bg7 {[%clk 0:02:59.3]}
4. e4 {[%clk 0:02:58.8]} 4... d6 {[%clk 0:02:59]} 5. h3 {[%clk 0:02:59.2]} 5...
O-O {[%clk 0:02:57.7]} 6. Be3 {[%clk 0:02:59.8]} 6... Nc6 {[%clk 0:02:38.4]} 7.
d5 {[%clk 0:02:59.1]} 7... Nb8 {[%clk 0:02:28.3]} 8. g4 {[%clk 0:02:51.1]} 8...
e5 {[%clk 0:02:24.1]} 9. Qc2 {[%clk 0:02:46.6]} 9... c6 {[%clk 0:02:22.3]} 10.
dxc6 {[%clk 0:02:36.2]} 10... Nxc6 {[%clk 0:02:23.2]} 11. O-O-O {[%clk
0:02:26.9]} 11... Nd4 {[%clk 0:02:15.5]} 12. Bxd4 {[%clk 0:02:25.6]} 12... exd4
{[%clk 0:02:14.9]} 13. Nb5 {[%clk 0:02:21.8]} 13... Qa5 {[%clk 0:02:10.5]} 14.
Kb1 {[%clk 0:02:10.1]} 14... Bd7 {[%clk 0:01:54.9]} 15. Nxd4 {[%clk 0:02:06.9]}
15... Rac8 {[%clk 0:01:52.4]} 16. Nb3 {[%clk 0:01:54.6]} 16... Qe5 {[%clk
0:01:44.1]} 17. Bd3 {[%clk 0:01:49.8]} 17... Nxe4 {[%clk 0:01:20.9]} 18. Nf3
{[%clk 0:01:41.7]} 18... Qf6 {[%clk 0:01:12.6]} 19. Nfd4 {[%clk 0:01:28.3]}
19... Nc5 {[%clk 0:01:05.7]} 20. Nxc5 {[%clk 0:01:23.9]} 20... Rxc5 {[%clk
0:00:50.1]} 21. Nb3 {[%clk 0:01:22.1]} 21... Rc7 {[%clk 0:00:50.4]} 22. Rhe1
{[%clk 0:01:19]} 22... b5 {[%clk 0:00:49.8]} 23. Nc1 {[%clk 0:00:48.5]} 23...
bxc4 {[%clk 0:00:45.5]} 24. Be4 {[%clk 0:00:47.3]} 24... Rb8 {[%clk 0:00:38]}
25. Re2 {[%clk 0:00:38.1]} 25... Ba4 {[%clk 0:00:31.4]} 0-1

[Event "Late-Titled-Tuesday-Blitz-June-25-2024"]
[Site "Chess.com"]
[Date "2024.06.25"]
[Round "6"]
[White "Kildepiotr"]
[Black "Viktor_Poddubnyi"]
[Result "1-0"]
[WhiteElo "2705"]
[BlackElo "2326"]
[TimeControl "180+1"]
[EndTime "15:03:52 PDT"]
[Termination "Kildepiotr won on time"]

1. Nf3 {[%clk 0:02:54.7]} 1... g6 {[%clk 0:02:59.8]} 2. g3 {[%clk 0:02:54.8]}
2... Bg7 {[%clk 0:03:00.2]} 3. d4 {[%clk 0:02:55.5]} 3... Nf6 {[%clk 0:02:59.6]}
4. Bg2 {[%clk 0:02:56.1]} 4... O-O {[%clk 0:02:59.3]} 5. O-O {[%clk 0:02:56.7]}
5... d6 {[%clk 0:02:59.7]} 6. Nbd2 {[%clk 0:02:56.7]} 6... Nc6 {[%clk
0:02:58.8]} 7. e4 {[%clk 0:02:57]} 7... e5 {[%clk 0:02:58.2]} 8. dxe5 {[%clk
0:02:57.3]} 8... dxe5 {[%clk 0:02:49.5]} 9. c3 {[%clk 0:02:56.6]} 9... a5 {[%clk
0:02:46.9]} 10. Qc2 {[%clk 0:02:53.4]} 10... Be6 {[%clk 0:02:33.6]} 11. b3
{[%clk 0:02:49]} 11... Qe7 {[%clk 0:02:21.7]} 12. a4 {[%clk 0:02:46.8]} 12...
Rfd8 {[%clk 0:02:21.1]} 13. Ba3 {[%clk 0:02:45.7]} 13... Qe8 {[%clk 0:02:21.4]}
14. Rfd1 {[%clk 0:02:44]} 14... Bf8 {[%clk 0:02:17.8]} 15. Bxf8 {[%clk
0:02:42.5]} 15... Qxf8 {[%clk 0:02:18.1]} 16. Bf1 {[%clk 0:02:42.5]} 16... Qc5
{[%clk 0:01:52.5]} 17. Bc4 {[%clk 0:02:38.8]} 17... Ng4 {[%clk 0:01:31]} 18. Rf1
{[%clk 0:02:35.5]} 18... Bxc4 {[%clk 0:01:18.9]} 19. Nxc4 {[%clk 0:02:36.4]}
19... Rd7 {[%clk 0:01:05.4]} 20. Rad1 {[%clk 0:02:35.6]} 20... Rad8 {[%clk
0:01:05.4]} 21. Rxd7 {[%clk 0:02:32.1]} 21... Rxd7 {[%clk 0:01:06.3]} 22. h3
{[%clk 0:02:32]} 22... Nf6 {[%clk 0:01:01.4]} 23. Kg2 {[%clk 0:02:13]} 23... Kg7
{[%clk 0:00:53.5]} 24. Re1 {[%clk 0:02:05.8]} 24... b6 {[%clk 0:00:45.5]} 25.
Re3 {[%clk 0:02:01.1]} 25... h6 {[%clk 0:00:29.9]} 26. Rd3 {[%clk 0:01:58]}
26... Qe7 {[%clk 0:00:17.4]} 27. Nfd2 {[%clk 0:01:49.4]} 27... Qd8 {[%clk
0:00:15.1]} 28. Rxd7 {[%clk 0:01:48.7]} 28... Qxd7 {[%clk 0:00:15.5]} 29. Nf1
{[%clk 0:01:43.8]} 29... Ne8 {[%clk 0:00:14.6]} 30. Nfe3 {[%clk 0:01:43]} 30...
Nf6 {[%clk 0:00:14.3]} 31. h4 {[%clk 0:01:39.4]} 31... h5 {[%clk 0:00:13.5]} 32.
f3 {[%clk 0:01:38.5]} 32... Qd8 {[%clk 0:00:12.4]} 33. Qd1 {[%clk 0:01:35.2]}
33... Qxd1 {[%clk 0:00:11.8]} 34. Nxd1 {[%clk 0:01:36.1]} 34... Kf8 {[%clk
0:00:11.6]} 35. Nde3 {[%clk 0:01:35.1]} 35... Ke7 {[%clk 0:00:12]} 36. Nd5+
{[%clk 0:01:33.5]} 36... Nxd5 {[%clk 0:00:04.5]} 37. exd5 {[%clk 0:01:34.4]} 1-0

[Event "Late-Titled-Tuesday-Blitz-June-25-2024"]
[Site "Chess.com"]
[Date "2024.06.25"]
[Round "6"]
[White "SimplyDevina"]
[Black "betta2004"]
[Result "0-1"]
[WhiteElo "2325"]
[BlackElo "2491"]
[TimeControl "180+1"]
[EndTime "15:04:22 PDT"]
[Termination "betta2004 won by resignation"]

1. d4 {[%clk 0:03:00.9]} 1... d5 {[%clk 0:02:31.9]} 2. c4 {[%clk 0:02:59.6]}
2... e6 {[%clk 0:02:32]} 3. Nc3 {[%clk 0:02:59.8]} 3... Nf6 {[%clk 0:02:32]} 4.
cxd5 {[%clk 0:02:59.4]} 4... exd5 {[%clk 0:02:32.2]} 5. Bg5 {[%clk 0:02:59.7]}
5... c6 {[%clk 0:02:30.7]} 6. e3 {[%clk 0:03:00]} 6... Be7 {[%clk 0:02:29.1]} 7.
Bd3 {[%clk 0:02:59.7]} 7... Nbd7 {[%clk 0:02:29.4]} 8. Nf3 {[%clk 0:02:57.5]}
8... Nh5 {[%clk 0:02:29]} 9. Bxe7 {[%clk 0:02:57.3]} 9... Qxe7 {[%clk
0:02:29.9]} 10. Qe2 {[%clk 0:02:45.2]} 10... Nb6 {[%clk 0:02:26.3]} 11. a4
{[%clk 0:02:41.7]} 11... g6 {[%clk 0:02:25]} 12. a5 {[%clk 0:02:40.6]} 12... Nd7
{[%clk 0:02:24.4]} 13. O-O {[%clk 0:02:31.8]} 13... f5 {[%clk 0:02:23]} 14. Qc2
{[%clk 0:02:18.8]} 14... Nhf6 {[%clk 0:02:22.4]} 15. a6 {[%clk 0:02:14.6]} 15...
b6 {[%clk 0:02:18.8]} 16. Ne2 {[%clk 0:01:44.1]} 16... c5 {[%clk 0:02:17.1]} 17.
Bb5 {[%clk 0:01:30.8]} 17... O-O {[%clk 0:02:14.3]} 18. Nf4 {[%clk 0:01:25.6]}
18... Qd6 {[%clk 0:01:58.5]} 19. Rfd1 {[%clk 0:01:11.4]} 19... c4 {[%clk
0:01:28.1]} 20. b3 {[%clk 0:01:02.7]} 20... cxb3 {[%clk 0:01:28.1]} 21. Qxb3
{[%clk 0:01:02]} 21... Kh8 {[%clk 0:01:25.8]} 22. Ng5 {[%clk 0:00:52.2]} 22...
Nb8 {[%clk 0:01:06.5]} 23. Rdc1 {[%clk 0:00:38.7]} 23... Bd7 {[%clk 0:00:50.7]}
24. Nd3 {[%clk 0:00:30.1]} 24... Bxb5 {[%clk 0:00:38.5]} 25. Qxb5 {[%clk
0:00:31]} 25... Ng4 {[%clk 0:00:32.9]} 26. g3 {[%clk 0:00:19.5]} 26... Nd7
{[%clk 0:00:33.3]} 27. Rc6 {[%clk 0:00:17.3]} 27... Qe7 {[%clk 0:00:33.1]} 28.
Nf3 {[%clk 0:00:13.5]} 28... Nxe3 {[%clk 0:00:30.7]} 29. fxe3 {[%clk 0:00:13.6]}
29... Qxe3+ {[%clk 0:00:30.6]} 30. Kg2 {[%clk 0:00:14.3]} 30... Qe2+ {[%clk
0:00:28.9]} 31. Nf2 {[%clk 0:00:14.8]} 31... Qxb5 {[%clk 0:00:29.2]} 0-1

[Event "Late-Titled-Tuesday-Blitz-June-25-2024"]
[Site "Chess.com"]
[Date "2024.06.25"]
[Round "6"]
[White "szachmistrz2500"]
[Black "romulocardoso"]
[Result "1-0"]
[WhiteElo "2469"]
[BlackElo "2314"]
[TimeControl "180+1"]
[EndTime "15:04:22 PDT"]
[Termination "szachmistrz2500 won by resignation"]

1. e4 {[%clk 0:02:58.5]} 1... c5 {[%clk 0:02:42.5]} 2. Nf3 {[%clk 0:02:57.9]}
2... g6 {[%clk 0:02:43.1]} 3. c3 {[%clk 0:02:55.1]} 3... Bg7 {[%clk 0:02:42.4]}
4. d4 {[%clk 0:02:54.6]} 4... cxd4 {[%clk 0:02:43.3]} 5. cxd4 {[%clk 0:02:54.9]}
5... d6 {[%clk 0:02:43.7]} 6. Nc3 {[%clk 0:02:54.3]} 6... Nf6 {[%clk 0:02:43.6]}
7. h3 {[%clk 0:02:54]} 7... O-O {[%clk 0:02:43.6]} 8. Bd3 {[%clk 0:02:53.6]}
8... e5 {[%clk 0:02:43.2]} 9. d5 {[%clk 0:02:44.5]} 9... Ne8 {[%clk 0:02:41.9]}
10. O-O {[%clk 0:02:43.2]} 10... f5 {[%clk 0:02:42]} 11. Ng5 {[%clk 0:02:41.5]}
11... h6 {[%clk 0:02:40]} 12. Ne6 {[%clk 0:02:41.3]} 12... Bxe6 {[%clk
0:02:39.8]} 13. dxe6 {[%clk 0:02:41.7]} 13... f4 {[%clk 0:02:37.6]} 14. Bc4
{[%clk 0:02:37.9]} 14... Qe7 {[%clk 0:02:37.2]} 15. Qg4 {[%clk 0:02:29.7]} 15...
Kh7 {[%clk 0:02:12.9]} 16. Nd5 {[%clk 0:02:29]} 16... Qg5 {[%clk 0:02:12]} 17.
Qxg5 {[%clk 0:02:26.2]} 17... hxg5 {[%clk 0:02:12.9]} 18. f3 {[%clk 0:02:21]}
18... Nc6 {[%clk 0:02:04.4]} 19. Bd2 {[%clk 0:02:20.7]} 19... Nf6 {[%clk
0:01:57.9]} 20. Nxf6+ {[%clk 0:02:17.9]} 20... Bxf6 {[%clk 0:01:58.8]} 21. Rfd1
{[%clk 0:02:14.9]} 21... Rac8 {[%clk 0:01:57.1]} 22. Rac1 {[%clk 0:02:13.7]}
22... Rfe8 {[%clk 0:01:40.5]} 23. Bd5 {[%clk 0:02:00.7]} 23... Nd4 {[%clk
0:01:33.2]} 24. Kf2 {[%clk 0:01:58.4]} 24... Rxc1 {[%clk 0:01:20]} 25. Rxc1
{[%clk 0:01:58]} 25... Nxe6 {[%clk 0:01:20.4]} 26. Bxe6 {[%clk 0:01:52.9]} 26...
Rxe6 {[%clk 0:01:21.3]} 27. Rc7+ {[%clk 0:01:53.1]} 27... Re7 {[%clk 0:01:21.3]}
28. Rc8 {[%clk 0:01:44.9]} 28... Rd7 {[%clk 0:01:20.4]} 29. Bc3 {[%clk
0:01:42.8]} 29... Bd8 {[%clk 0:01:19.4]} 30. Ke2 {[%clk 0:01:38.3]} 30... Bb6
{[%clk 0:01:18.3]} 31. a4 {[%clk 0:01:36.4]} 31... Kg7 {[%clk 0:00:58.8]} 32.
Kd3 {[%clk 0:01:31.7]} 32... Kf6 {[%clk 0:00:56.9]} 33. Kc4 {[%clk 0:01:23.3]}
33... Rd8 {[%clk 0:00:46.3]} 34. Rxd8 {[%clk 0:01:21.7]} 34... Bxd8 {[%clk
0:00:46.7]} 35. Kd5 {[%clk 0:01:22.3]} 35... Ke7 {[%clk 0:00:46.6]} 36. Bb4
{[%clk 0:01:18.1]} 36... Kd7 {[%clk 0:00:47]} 37. Bxd6 {[%clk 0:01:16.8]} 37...
a6 {[%clk 0:00:42.5]} 38. Bxe5 {[%clk 0:01:15.3]} 38... b5 {[%clk 0:00:42.7]}
39. axb5 {[%clk 0:01:12.4]} 39... axb5 {[%clk 0:00:43.6]} 40. Bd6 {[%clk
0:01:09.8]} 40... Bb6 {[%clk 0:00:26.6]} 41. e5 {[%clk 0:01:09.6]} 41... Be3
{[%clk 0:00:26]} 42. e6+ {[%clk 0:01:09.2]} 42... Ke8 {[%clk 0:00:25.4]} 43. Kc6
{[%clk 0:01:01.1]} 43... Bd4 {[%clk 0:00:18.9]} 44. b3 {[%clk 0:01:00.5]} 1-0